fUSD/lending_fUSD_20250708
["ID","MTS","AMOUNT","RATE_DAILY","PERIOD"]
[370426869,1752015066644,-460.0,0.00024931,2]
[370426870,1752015066654,-986.49,0.00024931,2]
[370426871,1752015066664,-460.0,0.00024931,2]
[370426872,1752015066674,-820.69,0.00024931,2]
[370426873,1752015066684,-614.27,0.00024931,2]
[370426874,1752015066694,-712.38,0.00024931,2]
[370426875,1752015066704,-460.0,0.00024931,2]
[370426876,1752015066714,-460.0,0.00024931,2]
[370426877,1752015066725,-460.0,0.00024931,2]
[370426878,1752015066735,-553.96,0.00024931,2]
[370426879,1752015066745,-460.0,0.00024931,2]
[370426880,1752015066754,-460.0,0.00024931,2]
[370426881,1752015066764,-584.81,0.00024931,2]
[370426882,1752015066774,-952.72,0.00024931,2]
[370426883,1752015066784,-747.35,0.00024931,2]
[370426884,1752015066794,-460.0,0.00024931,2]
[370426885,1752015066803,-293.45,0.00024931,2]
[370426886,1752015066813,-460.0,0.00024931,2]
[370426887,1752015066823,-460.0,0.00024931,2]
[370426888,1752015066835,-2403.23,0.00024931,2]
[370426889,1752015066845,-460.0,0.00024931,2]
[370426890,1752015066854,-1208.34,0.00024931,2]
[370426891,1752015066864,-1252.89,0.00024931,2]
[370426892,1752015066875,-460.0,0.00024931,2]
[370426893,1752015066885,-631.31,0.00024931,2]
[370426894,1752015066895,-460.0,0.00024931,2]
[370426895,1752015066907,-460.0,0.00024931,2]
[370426896,1752015066917,-421.02954922,0.00024931,2]
[370426897,1752015066927,-2542.54,0.00024931,2]
[370426898,1752015066937,-460.0,0.00024931,2]
[370426899,1752015066947,-460.0,0.00024931,2]
[370426900,1752015066956,-598.22,0.00024931,2]
[370426901,1752015066966,-460.0,0.00024931,2]
[370426902,1752015066976,-460.0,0.00024931,2]
[370426903,1752015066987,-2306.24,0.00024931,2]
[370426904,1752015066997,-240.93,0.00024931,2]
[370426905,1752015067007,-460.0,0.00024931,2]
[370426906,1752015067094,-509.41,0.00024931,2]
[370426907,1752015067116,-600.84,0.00024931,2]
[370426908,1752015067126,-460.0,0.00024931,2]
[370426909,1752015067136,-460.0,0.00024931,2]
[370426910,1752015067146,-484.12,0.00024931,2]
[370426911,1752015067157,-1738.0,0.00024931,2]
[370426912,1752015067167,-2735.21,0.00024931,2]
[370426913,1752015067188,-966.69,0.00024931,2]
[370426914,1752015067197,-677.87,0.00024931,2]
[370426915,1752015067206,-763.3,0.00024931,2]
[370426916,1752015067215,-2001.0,0.00024931,2]
[370426917,1752015067225,-1060.04,0.00024931,2]
[370426918,1752015067234,-460.0,0.00024931,2]
[370426919,1752015067243,-460.0,0.00024931,2]
[370426920,1752015067253,-243.28871134,0.00024931,2]
[370426921,1752015067262,-708.01,0.00024931,2]
[370426922,1752015067271,-460.0,0.00024931,2]
[370426923,1752015067281,-2298.27,0.00024931,2]
[370426924,1752015067290,-1277.41,0.00024931,2]
[370426925,1752015067299,-902.31,0.00024931,2]
[370426926,1752015067309,-3195.85,0.00024931,2]
[370426927,1752015067319,-460.0,0.00024931,2]
[370426928,1752015067331,-1438.05,0.00024931,2]
[370426929,1752015067343,-564.94,0.00024931,2]
[370426930,1752015067353,-916.72,0.00024931,2]
[370426931,1752015067363,-460.0,0.00024931,2]
[370426932,1752015067373,-3093.53,0.00024931,2]
[370426933,1752015067383,-467.83,0.00024931,2]
[370426934,1752015067393,-393.69,0.00024931,2]
[370426935,1752015067403,-460.0,0.00024931,2]
[370426936,1752015067413,-1473.44,0.00024931,2]
[370426937,1752015067424,-1032.95,0.00024931,2]
[370426938,1752015067435,-460.0,0.00024931,2]
[370426939,1752015067445,-2557.67,0.00024931,2]
[370426940,1752015067457,-460.0,0.00024931,2]
[370426941,1752015067467,-1597.41,0.00024931,2]
[370426942,1752015067476,-639.51,0.00024931,2]
[370426943,1752015067488,-1580.71,0.00024931,2]
[370426944,1752015067498,-460.0,0.00024931,2]
[370426945,1752015067509,-1550.74,0.00024931,2]
[370426946,1752015067519,-683.57,0.00024931,2]
[370426947,1752015067531,-460.0,0.00024931,2]
[370426948,1752015067542,-460.0,0.00024931,2]
[370426949,1752015067552,-2603.08,0.00024931,2]
[370426950,1752015067563,-1262.83,0.00024931,2]
[370426951,1752015067573,-3360.35,0.00024931,2]
[370426952,1752015067586,-872.02,0.00024931,2]
[370426953,1752015067596,-556.31,0.00024931,2]
[370426954,1752015067606,-460.0,0.00024931,2]
[370426955,1752015067616,-461.49,0.00024931,2]
[370426956,1752015067626,-460.0,0.00024931,2]
[370426957,1752015067635,-460.0,0.00024931,2]
[370426958,1752015067645,-740.03,0.00024931,2]
[370426959,1752015067654,-921.63,0.00024931,2]
[370426960,1752015067664,-460.0,0.00024931,2]
[370426961,1752015067673,-460.0,0.00024931,2]
[370426962,1752015067684,-1213.21,0.00024931,2]
[370426963,1752015067695,-460.0,0.00024931,2]
[370426964,1752015067706,-988.8,0.00024931,2]
[370426965,1752015067717,-460.0,0.00024931,2]
[370426966,1752015067727,-490.0,0.00024931,2]
[370426967,1752015067738,-460.0,0.00024931,2]
[370426968,1752015067749,-850.56,0.00024931,2]
[370426969,1752015067760,-460.0,0.00024931,2]
[370426970,1752015067770,-460.0,0.00024931,2]
[370426971,1752015067780,-1628.79,0.00024931,2]
[370426972,1752015067790,-936.47,0.00024931,2]
[370426973,1752015067802,-760.87,0.00024931,2]
[370426974,1752015067812,-568.44,0.00024931,2]
[370426975,1752015067822,-575.83,0.00024931,2]
[370426976,1752015067837,-587.37,0.00024931,2]
[370426977,1752015067847,-460.0,0.00024931,2]
[370426978,1752015067858,-304.53371005,0.00024931,2]
[370426979,1752015067872,-460.0,0.00024931,2]
[370426980,1752015068212,-1132.94,0.00024931,2]
[370426981,1752015068231,-1374.59,0.00024931,2]
[370426982,1752015068241,-460.0,0.00024931,2]
[370426983,1752015068251,-1215.72,0.00024931,2]
[370426984,1752015068261,-565.18,0.00024931,2]
[370426985,1752015068272,-460.0,0.00024931,2]
[370426986,1752015068282,-460.0,0.00024931,2]
[370426987,1752015068291,-460.0,0.00024931,2]
[370426988,1752015068301,-1139.12,0.00024931,2]
[370426989,1752015068311,-460.0,0.00024931,2]
[370426990,1752015068322,-460.0,0.00024931,2]
[370426991,1752015068332,-460.0,0.00024931,2]
[370426992,1752015068342,-2588.1,0.00024931,2]
[370426993,1752015068351,-494.11,0.00024931,2]
[370426994,1752015068361,-710.89,0.00024931,2]
[370426995,1752015068370,-586.9,0.00024931,2]
[370426996,1752015068381,-1523.24,0.00024931,2]
[370426997,1752015068392,-1992.81,0.00024931,2]
[370426998,1752015068402,-460.0,0.00024931,2]
[370426999,1752015068414,-460.0,0.00024931,2]
[370427000,1752015068425,-837.21,0.00024931,2]
[370427001,1752015068435,-862.72,0.00024931,2]
[370427002,1752015068445,-949.28,0.00024931,2]
[370427003,1752015068454,-419.69546421,0.00024931,2]
[370427004,1752015068464,-460.0,0.00024931,2]
[370427005,1752015068473,-925.39,0.00024931,2]
[370427006,1752015068483,-1807.22,0.00024931,2]
[370427007,1752015068492,-422.82288912,0.00024931,2]
[370427008,1752015068502,-613.11,0.00024931,2]
[370427009,1752015068511,-623.82,0.00024931,2]
[370427010,1752015068521,-460.0,0.00024931,2]
[370427011,1752015068531,-460.0,0.00024931,2]
[370427012,1752015068540,-1100.59,0.00024931,2]
[370427013,1752015068550,-460.0,0.00024931,2]
[370427014,1752015068559,-460.16,0.00024931,2]
[370427015,1752015068569,-460.0,0.00024931,2]
[370427016,1752015068579,-460.0,0.00024931,2]
[370427017,1752015068588,-460.0,0.00024931,2]
[370427018,1752015068598,-460.0,0.00024931,2]
[370427019,1752015068608,-460.0,0.00024931,2]
[370427020,1752015068618,-866.5,0.00024931,2]
[370427021,1752015068629,-460.0,0.00024931,2]
[370427022,1752015068639,-460.0,0.00024931,2]
[370427023,1752015068650,-568.82,0.00024931,2]
[370427024,1752015068660,-2077.6,0.00024931,2]
[370427025,1752015068670,-935.53,0.00024931,2]
[370427026,1752015068681,-460.0,0.00024931,2]
[370427027,1752015068691,-1598.91,0.00024931,2]
[370427028,1752015068701,-1087.61,0.00024931,2]
[370427029,1752015068713,-460.0,0.00024931,2]
[370427030,1752015068724,-1165.66,0.00024931,2]
[370427031,1752015068734,-460.0,0.00024931,2]
[370427032,1752015068746,-589.41,0.00024931,2]
[370427033,1752015068757,-460.0,0.00024931,2]
[370427034,1752015068768,-460.0,0.00024931,2]
[370427035,1752015068779,-460.0,0.00024931,2]
[370427036,1752015068789,-1671.98,0.00024931,2]
[370427037,1752015068800,-1782.41,0.00024931,2]
[370427038,1752015068810,-3005.26,0.00024931,2]
[370427039,1752015068821,-1897.6,0.00024931,2]
[370427040,1752015068835,-1112.47,0.00024931,2]
[370427041,1752015068845,-914.07,0.00024931,2]
[370427042,1752015068857,-1495.25,0.00024931,2]
[370427043,1752015068867,-460.0,0.00024931,2]
[370427044,1752015068879,-460.0,0.00024931,2]
[370427045,1752015068889,-905.54,0.00024931,2]
[370427046,1752015068901,-504.25,0.00024931,2]
[370427047,1752015068911,-21544.81,0.00024931,2]
[370427048,1752015068922,-460.0,0.00024931,2]
[370427049,1752015068933,-760.17,0.00024931,2]
[370427050,1752015068945,-547.63,0.00024931,2]
[370427051,1752015068955,-810.26,0.00024931,2]
[370427052,1752015068965,-460.0,0.00024931,2]
[370427053,1752015068974,-1696.41,0.00024931,2]
[370427054,1752015068984,-460.0,0.00024931,2]
[370427055,1752015068994,-3046.39,0.00024931,2]
[370427056,1752015069005,-1002.74,0.00024931,2]
[370427057,1752015069014,-460.0,0.00024931,2]
[370427058,1752015069023,-460.0,0.00024931,2]
[370427059,1752015069032,-846.35,0.00024931,2]
[370427060,1752015069042,-6858.34925221,0.00024931,2]
[370427061,1752015069074,-1025.73081779,0.00024657,2]
[370427062,1752015069087,-2586.88918221,0.00024657,2]
[370427063,1752015069098,-3051.09074779,0.00024931,2]
[370427064,1752015069107,-985.46,0.00024931,2]
[370427065,1752015069118,-595.53,0.00024931,2]
[370427066,1752015069129,-1791.7,0.00024931,2]
[370427067,1752015069139,-460.0,0.00024931,2]
[370427068,1752015069149,-825.3,0.00024931,2]
[370427069,1752015069159,-460.0,0.00024931,2]
[370427070,1752015069170,-802.78,0.00024931,2]
[370427071,1752015069180,-460.0,0.00024931,2]
[370427072,1752015069190,-460.0,0.00024931,2]
[370427073,1752015069201,-460.0,0.00024931,2]
[370427074,1752015069211,-460.0,0.00024931,2]
[370427075,1752015069220,-1504.4,0.00024931,2]
[370427076,1752015069230,-460.0,0.00024931,2]
[370427077,1752015069240,-194.55,0.00024931,2]
[370427078,1752015069251,-1833.0,0.00024931,2]
[370427079,1752015069260,-776.30217553,0.00024931,2]
[370427080,1752015070134,-3612.62,0.00024657,2]
[370427081,1752015070147,-460.0,0.00024657,2]
[370427082,1752015070157,-3612.62,0.00024657,2]
[370427083,1752015070168,-3612.62,0.00024657,2]
[370427084,1752015070178,-460.0,0.00024657,2]
[370427085,1752015070189,-460.0,0.00024657,2]
[370427086,1752015070199,-460.0,0.00024657,2]
[370427087,1752015070208,-3612.62,0.00024657,2]
[370427088,1752015070218,-3135.18,0.00024657,2]
[370427089,1752015070228,-1767.79,0.00024657,2]
[370427090,1752015070238,-3612.62,0.00024899,2]
[370427091,1752015070248,-3612.62,0.00024899,2]
[370427092,1752015070258,-3612.62,0.00024899,2]
[370427093,1752015070268,-3612.62,0.0002493,2]
[370427094,1752015070278,-3612.62,0.0002493,2]
[370427095,1752015070288,-3612.62,0.0002493,2]
[370427096,1752015070299,-3612.62,0.0002493,2]
[370427097,1752015070309,-1018.13782447,0.00024931,2]
[370427098,1752015070319,-460.0,0.00024931,2]
[370427099,1752015070329,-657.08,0.00024931,2]
[370427100,1752015070343,-460.0,0.00024931,2]
[370427101,1752015070355,-657.71,0.00024931,2]
[370427102,1752015070366,-1227.99,0.00024931,2]
[370427103,1752015070376,-1897.62,0.00024931,2]
[370427104,1752015070388,-11.30812904,0.00024931,2]
[370427105,1752015071260,-488.69187096,0.00024931,2]
[370427106,1752015071272,-460.0,0.00024931,2]
[370427107,1752015071281,-496.36,0.00024931,2]
[370427108,1752015071292,-460.0,0.00024931,2]
[370427109,1752015071302,-460.0,0.00024931,2]
[370427110,1752015071312,-460.0,0.00024931,2]
[370427111,1752015071321,-460.0,0.00024931,2]
[370427112,1752015071331,-578.9,0.00024931,2]
[370427113,1752015071341,-460.0,0.00024931,2]
[370427114,1752015071352,-460.0,0.00024931,2]
[370427115,1752015071361,-460.0,0.00024931,2]
[370427116,1752015071371,-460.0,0.00024931,2]
[370427117,1752015071380,-813.39,0.00024931,2]
[370427118,1752015071389,-13801.58,0.00024931,2]
[370427119,1752015071399,-554.63,0.00024931,2]
[370427120,1752015071408,-460.0,0.00024931,2]
[370427121,1752015071418,-460.0,0.00024931,2]
[370427122,1752015071427,-500.0,0.00024931,2]
[370427123,1752015071438,-460.0,0.00024931,2]
[370427124,1752015071447,-630.3,0.00024931,2]
[370427125,1752015071457,-1913.4,0.00024931,2]
[370427126,1752015071468,-460.0,0.00024931,2]
[370427127,1752015071477,-460.0,0.00024931,2]
[370427128,1752015071486,-485.16,0.00024931,2]
[370427129,1752015071495,-1276.72,0.00024931,2]
[370427130,1752015071506,-460.0,0.00024931,2]
[370427131,1752015071515,-497.73,0.00024931,2]
[370427132,1752015071527,-1394.34,0.00024931,2]
[370427133,1752015071537,-7056.28,0.00024931,2]
[370427134,1752015071547,-460.0,0.00024931,2]
[370427135,1752015071558,-711.01,0.00024931,2]
[370427136,1752015071569,-460.0,0.00024931,2]
[370427137,1752015071579,-266.67,0.00024931,2]
[370427138,1752015071589,-753.12,0.00024931,2]
[370427139,1752015071600,-460.0,0.00024931,2]
[370427140,1752015071610,-939.51,0.00024931,2]
[370427141,1752015071621,-539.73,0.00024931,2]
[370427142,1752015071631,-460.0,0.00024931,2]
[370427143,1752015071642,-460.0,0.00024931,2]
[370427144,1752015071652,-692.08,0.00024931,2]
[370427145,1752015071663,-460.0,0.00024931,2]
[370427146,1752015071674,-2728.52,0.00024931,2]
[370427147,1752015071684,-460.0,0.00024931,2]
[370427148,1752015071694,-460.0,0.00024931,2]
[370427149,1752015071704,-460.0,0.00024931,2]
[370427150,1752015071713,-650.46,0.00024931,2]
[370427151,1752015071722,-459.31258106,0.00024931,2]
[370427152,1752015071733,-460.0,0.00024931,2]
[370427153,1752015071742,-720.77,0.00024931,2]
[370427154,1752015071751,-460.0,0.00024931,2]
[370427155,1752015071760,-497.7,0.00024931,2]
[370427156,1752015071770,-1057.01,0.00024931,2]
[370427157,1752015071780,-460.0,0.00024931,2]
[370427158,1752015071790,-571.39478177,0.00024931,2]
[370427159,1752015071799,-11217.39,0.00024931,2]
[370427160,1752015071808,-641.91,0.00024931,2]
[370427161,1752015071817,-1249.6,0.00024931,2]
[370427162,1752015071828,-460.0,0.00024931,2]
[370427163,1752015071839,-460.0,0.00024931,2]
[370427164,1752015071849,-460.0,0.00024931,2]
[370427165,1752015071858,-319.43,0.00024931,2]
[370427166,1752015071868,-460.0,0.00024931,2]
[370427167,1752015071878,-1105.17,0.00024931,2]
[370427168,1752015071888,-460.0,0.00024931,2]
[370427169,1752015071897,-460.0,0.00024931,2]
[370427170,1752015071909,-833.59,0.00024931,2]
[370427171,1752015071919,-460.0,0.00024931,2]
[370427172,1752015071928,-460.0,0.00024931,2]
[370427173,1752015071938,-499.39,0.00024931,2]
[370427174,1752015071948,-460.0,0.00024931,2]
[370427175,1752015071957,-1046.53,0.00024931,2]
[370427176,1752015071966,-467.29,0.00024931,2]
[370427177,1752015071976,-460.0,0.00024931,2]
[370427178,1752015071985,-1239.1,0.00024931,2]
[370427179,1752015071994,-460.0,0.00024931,2]
[370427180,1752015072003,-460.0,0.00024931,2]
[370427181,1752015072013,-1554.43,0.00024931,2]
[370427182,1752015072022,-1642.19,0.00024931,2]
[370427183,1752015072032,-1313.7,0.00024931,2]
[370427184,1752015072043,-460.0,0.00024931,2]
[370427185,1752015072052,-602.8,0.00024931,2]
[370427186,1752015072061,-460.0,0.00024931,2]
[370427187,1752015072071,-902.69,0.00024931,2]
[370427188,1752015072080,-460.0,0.00024931,2]
[370427189,1752015072090,-1201.45,0.00024931,2]
[370427190,1752015072100,-460.0,0.00024931,2]
[370427191,1752015072110,-2103.01,0.00024931,2]
[370427192,1752015072119,-460.0,0.00024931,2]
[370427193,1752015072128,-2904.39,0.00024931,2]
[370427194,1752015072137,-980.81,0.00024931,2]
[370427195,1752015072146,-1165.94,0.00024931,2]
[370427196,1752015072156,-1243.37,0.00024931,2]
[370427197,1752015072166,-1329.71,0.00024931,2]
[370427198,1752015072175,-460.0,0.00024931,2]
[370427199,1752015072186,-600.22,0.00024931,2]
[370427200,1752015072197,-487.1,0.00024931,2]
[370427201,1752015072207,-911.41,0.00024931,2]
[370427202,1752015072218,-460.0,0.00024931,2]
[370427203,1752015072227,-460.0,0.00024931,2]
[370427204,1752015072238,-460.0,0.00024931,2]
[370427205,1752015072249,-460.0,0.00024931,2]
[370427206,1752015072260,-1692.54,0.00024931,2]
[370427207,1752015072270,-460.0,0.00024931,2]
[370427208,1752015072279,-460.0,0.00024931,2]
[370427209,1752015072290,-460.0,0.00024931,2]
[370427210,1752015072299,-460.0,0.00024931,2]
[370427211,1752015072309,-460.0,0.00024931,2]
[370427212,1752015072318,-517.81,0.00024931,2]
[370427213,1752015072327,-886.5,0.00024931,2]
[370427214,1752015072337,-509.74,0.00024931,2]
[370427215,1752015072346,-460.0,0.00024931,2]
[370427216,1752015072355,-1604.48,0.00024931,2]
[370427217,1752015072365,-460.0,0.00024931,2]
[370427218,1752015072374,-460.0,0.00024931,2]
[370427219,1752015072383,-460.0,0.00024931,2]
[370427220,1752015072393,-595.03,0.00024931,2]
[370427221,1752015072402,-460.0,0.00024931,2]
[370427222,1752015072412,-706.27,0.00024931,2]
[370427223,1752015072422,-460.0,0.00024931,2]
[370427224,1752015072432,-972.64,0.00024931,2]
[370427225,1752015072441,-506.89,0.00024931,2]
[370427226,1752015072450,-581.03,0.00024931,2]
[370427227,1752015072460,-602.37,0.00024931,2]
[370427228,1752015072469,-151.87008638,0.00024931,2]
[370427229,1752015072479,-1867.79,0.00024931,2]
[370427230,1752015072488,-460.0,0.00024931,2]
[370427231,1752015072498,-708.82,0.00024931,2]
[370427232,1752015072508,-1296.24,0.00024931,2]
[370427233,1752015072517,-460.0,0.00024931,2]
[370427234,1752015072526,-946.45,0.00024931,2]
[370427235,1752015072536,-523.13,0.00024931,2]
[370427236,1752015072545,-460.04,0.00024931,2]
[370427237,1752015072554,-660.6,0.00024931,2]
[370427238,1752015072564,-1803.42,0.00024931,2]
[370427239,1752015072573,-791.04,0.00024931,2]
[370427240,1752015072583,-460.0,0.00024931,2]
[370427241,1752015072592,-460.0,0.00024931,2]
[370427242,1752015072602,-460.0,0.00024931,2]
[370427243,1752015072612,-753.16,0.00024931,2]
[370427244,1752015072622,-2324.81,0.00024931,2]
[370427245,1752015072632,-460.0,0.00024931,2]
[370427246,1752015072642,-460.0,0.00024931,2]
[370427247,1752015072652,-460.0,0.00024931,2]
[370427248,1752015072661,-704.69,0.00024931,2]
[370427249,1752015072671,-460.0,0.00024931,2]
[370427250,1752015072680,-481.28,0.00024931,2]
[370427251,1752015072690,-2222.67,0.00024931,2]
[370427252,1752015072699,-460.0,0.00024931,2]
[370427253,1752015072709,-255.6285718,0.00024931,2]
[370427254,1752015072718,-1813.32,0.00024931,2]
[370427255,1752015072727,-284.98,0.00024931,2]
[370427256,1752015072735,-924.03,0.00024931,2]
[370427257,1752015072744,-460.0,0.00024931,2]
[370427258,1752015072754,-940.71,0.00024931,2]
[370427259,1752015072763,-934.14,0.00024931,2]
[370427260,1752015072772,-460.0,0.00024931,2]
[370427261,1752015072781,-1772.27,0.00024931,2]
[370427262,1752015072790,-460.0,0.00024931,2]
[370427263,1752015072799,-863.86,0.00024931,2]
[370427264,1752015072808,-460.0,0.00024931,2]
[370427265,1752015072817,-2128.28,0.00024931,2]
[370427266,1752015072827,-460.0,0.00024931,2]
[370427267,1752015072839,-460.0,0.00024931,2]
[370427268,1752015072848,-460.0,0.00024931,2]
[370427269,1752015072857,-9800.0,0.00024931,2]
[370427270,1752015072866,-460.0,0.00024931,2]
[370427271,1752015072876,-1021.16,0.00024931,2]
[370427272,1752015072886,-460.0,0.00024931,2]
[370427273,1752015072895,-3055.97,0.00024931,2]
[370427274,1752015072905,-460.0,0.00024931,2]
[370427275,1752015072915,-460.0,0.00024931,2]
[370427276,1752015072924,-460.0,0.00024931,2]
[370427277,1752015072933,-719.41,0.00024931,2]
[370427278,1752015072942,-460.0,0.00024931,2]
[370427279,1752015072951,-460.0,0.00024931,2]
[370427280,1752015072960,-943.36,0.00024931,2]
[370427281,1752015072969,-3625.36,0.00024931,2]
[370427282,1752015072979,-693.22,0.00024931,2]
[370427283,1752015072988,-460.0,0.00024931,2]
[370427284,1752015072997,-771.52,0.00024931,2]
[370427285,1752015073007,-812.3,0.00024931,2]
[370427286,1752015073016,-755.78,0.00024931,2]
[370427287,1752015073025,-2532.89,0.00024931,2]
[370427288,1752015073035,-1272.28,0.00024931,2]
[370427289,1752015073044,-4999.35,0.00024931,2]
[370427290,1752015073055,-549.95,0.00024931,2]
[370427291,1752015073065,-460.0,0.00024931,2]
[370427292,1752015073074,-460.0,0.00024931,2]
[370427293,1752015073084,-460.0,0.00024931,2]
[370427294,1752015073093,-780.45,0.00024931,2]
[370427295,1752015073104,-1337.53,0.00024931,2]
[370427296,1752015073113,-460.0,0.00024931,2]
[370427297,1752015073122,-591.81445083,0.00024931,2]
[370427298,1752015073132,-460.0,0.00024931,2]
[370427299,1752015073141,-490.0,0.00024931,2]
[370427300,1752015073151,-460.0,0.00024931,2]
[370427301,1752015073160,-525.93,0.00024931,2]
[370427302,1752015073170,-1074.28,0.00024931,2]
[370427303,1752015073180,-1625.8,0.00024931,2]
[370427304,1752015073189,-795.24,0.00024931,2]
[370427305,1752015073199,-460.0,0.00024931,2]
[370427306,1752015073209,-460.0,0.00024931,2]
[370427307,1752015073218,-900.61,0.00024931,2]
[370427308,1752015073227,-1759.3,0.00024931,2]
[370427309,1752015073237,-460.0,0.00024931,2]
[370427310,1752015073247,-508.05,0.00024931,2]
[370427311,1752015073256,-460.0,0.00024931,2]
[370427312,1752015073266,-734.98,0.00024931,2]
[370427313,1752015073276,-646.31,0.00024931,2]
[370427314,1752015073285,-2158.79,0.00024931,2]
[370427315,1752015073294,-1229.73,0.00024931,2]
[370427316,1752015073304,-460.0,0.00024931,2]
[370427317,1752015073314,-1240.91,0.00024931,2]
[370427318,1752015073326,-496.75,0.00024931,2]
[370427319,1752015073339,-460.0,0.00024931,2]
[370427320,1752015073350,-460.0,0.00024931,2]
[370427321,1752015073359,-1968.84,0.00024931,2]
[370427322,1752015073369,-4646.74,0.00024931,2]
[370427323,1752015073379,-460.0,0.00024931,2]
[370427324,1752015073389,-910.35,0.00024931,2]
[370427325,1752015073398,-1152.63,0.00024931,2]
[370427326,1752015073408,-733.89,0.00024931,2]
[370427327,1752015073417,-547.9,0.00024931,2]
[370427328,1752015073427,-1920.055219,0.00024931,2]
[370427329,1752015073462,-490.0,0.00024657,2]
[370427330,1752015073478,-110.51,0.00024657,2]
[370427331,1752015073488,-97.854781,0.00024931,2]
[370427332,1752015073500,-3144.26,0.00024931,2]
[370427333,1752015073510,-566.49,0.00024931,2]
[370427334,1752015073521,-460.0,0.00024931,2]
[370427335,1752015073530,-824.28521894,0.00024931,2]
[370427336,1752015073662,-3612.62,0.0002493,2]
[370427337,1752015073673,-1098.53478106,0.00024931,2]
[370427338,1752015073684,-593.46,0.00024931,2]
[370427339,1752015073695,-2217.97,0.00024931,2]
[370427340,1752015073707,-539.1,0.00024931,2]
[370427341,1752015073717,-1155.56,0.00024931,2]
[370427342,1752015073729,-505.64,0.00024931,2]
[370427343,1752015073741,-1233.31521894,0.00024931,2]
[370427344,1752015084261,200.0,0.00030136,120]
[370427345,1752015115595,158.4,0.00013699,2]
[370427347,1752015193076,2000.0,0.00030137,120]
[370427348,1752015199381,500.0,0.00030137,120]
[370427351,1752016145142,1000.0,0.00030136,120]
[370427352,1752016154037,1000.0,0.00030136,120]
[370427353,1752016186663,513.45,0.0003013,120]
[370427354,1752016220579,330.00000001,0.00030136,120]
[370427357,1752016232159,-610.76729328,0.000189,2]
[370427358,1752016232172,-1159.31366948,0.000189,2]
[370427359,1752016232182,-128.55306846,0.00019178,2]
[370427365,1752016232909,-22.44693154,0.00019178,2]
[370427366,1752016232918,-162.174,0.00019726,2]
[370427367,1752016232928,-176.97,0.00020448,2]
[370427368,1752016232937,-4227.280566,0.00022113,2]
[370427369,1752016232946,-1200.0,0.00022388,2]
[370427370,1752016232956,-164.09987279,0.00022389,2]
[370427371,1752016232965,-293.5601859,0.00022389,2]
[370427372,1752016232975,-150.0,0.00022389,2]
[370427373,1752016232984,-173.75916572,0.00022389,2]
[370427374,1752016232994,-294.96720661,0.00022389,2]
[370427375,1752016233004,-150.5365167,0.00022389,2]
[370427376,1752016233014,-150.0,0.00022389,2]
[370427377,1752016233023,-503.0,0.00022415,2]
[370427378,1752016233032,-300.0,0.00022437,2]